[Event "Titled Tuesday Blitz May 10 Late 2022"]
[White "Romanchuk, Viktor"]
[Black "Leitao, Rafael"]
[WhiteFideId "14109271"]
[BlackFideId "2101246"]
[WhiteElo "2242"]
[BlackElo "2609"]
[Result "0-1"]
[Round "07"]
[TimeControl "180+1"]
[Date "2022.05.10"]
[WhiteClock "0:00:02"]
[BlackClock "0:00:15"]

1. d4 {[%clk 0:03:00]}  Nf6 {[%clk 0:02:57]} 2. c4 {[%clk 0:03:00]}  e6 {[%clk 0:02:57]} 3. Nc3 {[%clk 0:02:59]}  Bb4 {[%clk 0:02:56]} 4. e3 {[%clk 0:02:54]}  O-O {[%clk 0:02:55]} 5. Ne2 {[%clk 0:02:53]}  c6 {[%clk 0:02:49]} 6. a3 {[%clk 0:02:53]}  Ba5 {[%clk 0:02:49]} 7. Qc2 {[%clk 0:02:54]}  d5 {[%clk 0:02:46]} 8. Ng3 {[%clk 0:02:54]}  Nbd7 {[%clk 0:02:43]} 9. Be2 {[%clk 0:02:54]}  dxc4 {[%clk 0:02:42]} 10. Bxc4 {[%clk 0:02:55]}  Bc7 {[%clk 0:02:38]} 11. O-O {[%clk 0:02:54]}  e5 {[%clk 0:02:25]} 12. Rd1 {[%clk 0:02:53]}  exd4 {[%clk 0:02:24]} 13. Rxd4 {[%clk 0:02:54]}  g6 {[%clk 0:02:11]} 14. b4 {[%clk 0:02:47]}  Qe7 {[%clk 0:02:04]} 15. Bb2 {[%clk 0:02:41]}  Ne5 {[%clk 0:01:58]} 16. Bb3 {[%clk 0:02:17]}  Be6 {[%clk 0:01:56]} 17. Rad1 {[%clk 0:02:13]}  Bxb3 {[%clk 0:01:53]} 18. Qxb3 {[%clk 0:02:12]}  Rad8 {[%clk 0:01:51]} 19. Nce4 {[%clk 0:02:10]}  Nxe4 {[%clk 0:01:43]} 20. Nxe4 {[%clk 0:02:07]}  Rxd4 {[%clk 0:01:39]} 21. Rxd4 {[%clk 0:02:03]}  Rd8 {[%clk 0:01:31]} 22. Qd1 {[%clk 0:02:01]}  f6 {[%clk 0:01:02]} 23. f4 {[%clk 0:01:19]}  Rxd4 {[%clk 0:01:01]} 24. Qxd4 {[%clk 0:01:17]}  Bb6 {[%clk 0:00:57]} 25. Nxf6+ {[%clk 0:00:45]}  Qxf6 {[%clk 0:00:56]} 26. Qxe5 {[%clk 0:00:45]}  Qxe5 {[%clk 0:00:56]} 27. Bxe5 {[%clk 0:00:44]}  Bxe3+ {[%clk 0:00:57]} 28. Kf1 {[%clk 0:00:44]}  Kf7 {[%clk 0:00:58]} 29. Ke2 {[%clk 0:00:44]}  Bc1 {[%clk 0:00:56]} 30. a4 {[%clk 0:00:42]}  Ke6 {[%clk 0:00:51]} 31. Kd3 {[%clk 0:00:37]}  Kf5 {[%clk 0:00:45]} 32. Bd4 {[%clk 0:00:31]}  Bxf4 {[%clk 0:00:44]} 33. h3 {[%clk 0:00:30]}  Bb8 {[%clk 0:00:41]} 34. Ke3 {[%clk 0:00:30]}  h5 {[%clk 0:00:40]} 35. Kf3 {[%clk 0:00:29]}  a6 {[%clk 0:00:38]} 36. g4+ {[%clk 0:00:28]}  hxg4+ {[%clk 0:00:38]} 37. hxg4+ {[%clk 0:00:29]}  Ke6 {[%clk 0:00:37]} 38. Ke4 {[%clk 0:00:30]}  Bd6 {[%clk 0:00:37]} 39. Bc3 {[%clk 0:00:28]}  b5 {[%clk 0:00:36]} 40. axb5 {[%clk 0:00:27]}  axb5 {[%clk 0:00:35]} 41. Bd2 {[%clk 0:00:26]}  c5 {[%clk 0:00:34]} 42. bxc5 {[%clk 0:00:26]}  Bxc5 {[%clk 0:00:35]} 43. Be1 {[%clk 0:00:26]}  b4 {[%clk 0:00:34]} 44. Bd2 {[%clk 0:00:24]}  b3 {[%clk 0:00:33]} 45. Kd3 {[%clk 0:00:24]}  b2 {[%clk 0:00:33]} 46. Kc2 {[%clk 0:00:24]}  Bd4 {[%clk 0:00:34]} 47. Bf4 {[%clk 0:00:21]}  Kd5 {[%clk 0:00:34]} 48. Bd2 {[%clk 0:00:09]}  Ke4 {[%clk 0:00:34]} 49. Kb1 {[%clk 0:00:06]}  Kf3 {[%clk 0:00:33]} 50. g5 {[%clk 0:00:06]}  Be3 {[%clk 0:00:33]} 51. Bc3 {[%clk 0:00:05]}  Bc1 {[%clk 0:00:33]} 52. Bf6 {[%clk 0:00:04]}  Ke4 {[%clk 0:00:33]} 53. Kc2 {[%clk 0:00:03]}  Kf3 {[%clk 0:00:33]} 54. Kb1 {[%clk 0:00:02]}  Kg4 {[%clk 0:00:27]} 55. Kc2 {[%clk 0:00:03]}  Kh4 {[%clk 0:00:25]} 56. Kb1 {[%clk 0:00:02]}  Kh5 {[%clk 0:00:23]} 57. Kc2 {[%clk 0:00:02]}  Kg4 {[%clk 0:00:17]} 58. Kb1 {[%clk 0:00:02]}  Kf5 {[%clk 0:00:18]} 59. Kc2 {[%clk 0:00:02]}  Ke4 {[%clk 0:00:15]} 60. Kb1 {[%clk 0:00:02]}  Kd3 {[%clk 0:00:15]} 0-1


[Site "https://www.chess.com"]

[Event "Titled Tuesday Blitz May 10 Late 2022"]
[White "Rorrer, Grayson"]
[Black "Zhigalko, Sergei"]
[WhiteFideId "30944996"]
[BlackFideId "13502956"]
[WhiteElo "2122"]
[BlackElo "2662"]
[Result "0-1"]
[Round "07"]
[TimeControl "180+1"]
[Date "2022.05.10"]
[WhiteClock "0:00:02"]
[BlackClock "0:00:06"]

1. e4 {[%clk 0:03:00]}  c5 {[%clk 0:02:59]} 2. Nf3 {[%clk 0:03:00]}  Nc6 {[%clk 0:02:59]} 3. Bb5 {[%clk 0:03:00]}  Nf6 {[%clk 0:02:59]} 4. Bxc6 {[%clk 0:02:59]}  dxc6 {[%clk 0:03:00]} 5. d3 {[%clk 0:02:59]}  Bg4 {[%clk 0:03:00]} 6. h3 {[%clk 0:03:00]}  Bh5 {[%clk 0:03:00]} 7. Nc3 {[%clk 0:02:54]}  Nd7 {[%clk 0:02:59]} 8. Be3 {[%clk 0:02:51]}  e6 {[%clk 0:02:58]} 9. Qe2 {[%clk 0:02:51]}  Be7 {[%clk 0:02:55]} 10. O-O-O {[%clk 0:02:45]}  Qa5 {[%clk 0:02:55]} 11. g4 {[%clk 0:02:44]}  Bg6 {[%clk 0:02:54]} 12. Kb1 {[%clk 0:02:40]}  b5 {[%clk 0:02:38]} 13. Qe1 {[%clk 0:02:25]}  Qc7 {[%clk 0:02:29]} 14. Ne2 {[%clk 0:02:19]}  f6 {[%clk 0:02:27]} 15. Nh4 {[%clk 0:02:12]}  Bf7 {[%clk 0:02:26]} 16. f4 {[%clk 0:02:13]}  a5 {[%clk 0:02:17]} 17. Nf3 {[%clk 0:02:12]}  a4 {[%clk 0:02:13]} 18. d4 {[%clk 0:02:09]}  cxd4 {[%clk 0:02:11]} 19. Nexd4 {[%clk 0:02:10]}  O-O {[%clk 0:02:03]} 20. g5 {[%clk 0:01:56]}  fxg5 {[%clk 0:01:57]} 21. Nxg5 {[%clk 0:01:51]}  Bxg5 {[%clk 0:01:54]} 22. fxg5 {[%clk 0:01:52]}  Rae8 {[%clk 0:01:46]} 23. Qe2 {[%clk 0:01:44]}  Bg6 {[%clk 0:01:42]} 24. Bc1 {[%clk 0:01:40]}  Nc5 {[%clk 0:01:36]} 25. e5 {[%clk 0:01:32]}  a3 {[%clk 0:01:23]} 26. h4 {[%clk 0:01:21]}  Be4 {[%clk 0:01:01]} 27. Rhe1 {[%clk 0:01:13]}  Qxe5 {[%clk 0:00:58]} 28. Nxc6 {[%clk 0:01:11]}  Qc7 {[%clk 0:00:40]} 29. Nd4 {[%clk 0:01:10]}  b4 {[%clk 0:00:36]} 30. Rf1 {[%clk 0:00:39]}  Bd5 {[%clk 0:00:27]} 31. Rxf8+ {[%clk 0:00:25]}  Rxf8 {[%clk 0:00:28]} 32. Rf1 {[%clk 0:00:23]}  Rc8 {[%clk 0:00:28]} 33. Bf4 {[%clk 0:00:15]}  Qd7 {[%clk 0:00:23]} 34. Qe5 {[%clk 0:00:13]}  Ne4 {[%clk 0:00:21]} 35. h5 {[%clk 0:00:09]}  axb2 {[%clk 0:00:15]} 36. g6 {[%clk 0:00:08]}  Qa7 {[%clk 0:00:07]} 37. Nb3 {[%clk 0:00:02]}  Bxb3 {[%clk 0:00:06]} 0-1


[Site "https://www.chess.com"]

[Event "Titled Tuesday Blitz May 10 Late 2022"]
[White "Sernecki, Franciszek"]
[Black "Kalajzic, Ivan"]
[WhiteFideId "1169297"]
[BlackFideId "14506378"]
[WhiteElo "2189"]
[BlackElo "2163"]
[Result "1-0"]
[Round "07"]
[TimeControl "180+1"]
[Date "2022.05.11"]
[WhiteClock "0:00:06"]
[BlackClock "0:00:44"]

1. d4 {[%clk 0:03:00]}  Nc6 {[%clk 0:03:00]} 2. Nf3 {[%clk 0:02:54]}  d6 {[%clk 0:03:00]} 3. c4 {[%clk 0:02:45]}  Bg4 {[%clk 0:02:59]} 4. e3 {[%clk 0:02:45]}  e5 {[%clk 0:02:59]} 5. Be2 {[%clk 0:02:43]}  Nf6 {[%clk 0:02:58]} 6. O-O {[%clk 0:02:34]}  g6 {[%clk 0:02:57]} 7. h3 {[%clk 0:02:28]}  Bd7 {[%clk 0:02:56]} 8. Nc3 {[%clk 0:02:23]}  Bg7 {[%clk 0:02:56]} 9. d5 {[%clk 0:01:59]}  Ne7 {[%clk 0:02:55]} 10. e4 {[%clk 0:01:59]}  O-O {[%clk 0:02:54]} 11. b4 {[%clk 0:01:58]}  a5 {[%clk 0:02:50]} 12. bxa5 {[%clk 0:01:55]}  Rxa5 {[%clk 0:02:49]} 13. Nd2 {[%clk 0:01:53]}  b6 {[%clk 0:02:47]} 14. Nb3 {[%clk 0:01:53]}  Ra8 {[%clk 0:02:47]} 15. a4 {[%clk 0:01:48]}  Ne8 {[%clk 0:02:46]} 16. a5 {[%clk 0:01:44]}  bxa5 {[%clk 0:02:43]} 17. Rxa5 {[%clk 0:01:43]}  Rb8 {[%clk 0:02:40]} 18. c5 {[%clk 0:01:37]}  f5 {[%clk 0:02:36]} 19. c6 {[%clk 0:01:12]}  Bc8 {[%clk 0:02:36]} 20. Ba6 {[%clk 0:01:12]}  fxe4 {[%clk 0:02:24]} 21. Bxc8 {[%clk 0:01:07]}  Nxc8 {[%clk 0:02:22]} 22. Nxe4 {[%clk 0:01:07]}  Nb6 {[%clk 0:02:15]} 23. Bg5 {[%clk 0:01:05]}  Bf6 {[%clk 0:02:14]} 24. Bh6 {[%clk 0:00:55]}  Bg7 {[%clk 0:02:11]} 25. Bg5 {[%clk 0:00:53]}  Qc8 {[%clk 0:01:58]} 26. Be3 {[%clk 0:00:36]}  Qf5 {[%clk 0:01:52]} 27. Nbd2 {[%clk 0:00:29]}  Nf6 {[%clk 0:01:43]} 28. Bxb6 {[%clk 0:00:20]}  Rxb6 {[%clk 0:01:40]} 29. Nxf6+ {[%clk 0:00:16]}  Bxf6 {[%clk 0:01:38]} 30. Qg4 {[%clk 0:00:13]}  Bg5 {[%clk 0:01:20]} 31. Ne4 {[%clk 0:00:10]}  Qxg4 {[%clk 0:01:15]} 32. hxg4 {[%clk 0:00:11]}  Be7 {[%clk 0:01:16]} 33. g5 {[%clk 0:00:08]}  Rf5 {[%clk 0:01:13]} 34. Ra7 {[%clk 0:00:08]}  Bd8 {[%clk 0:01:00]} 35. Ra8 {[%clk 0:00:08]}  Rf8 {[%clk 0:01:00]} 36. f3 {[%clk 0:00:08]}  Kf7 {[%clk 0:00:59]} 37. Rd1 {[%clk 0:00:08]}  Be7 {[%clk 0:00:54]} 38. Ra7 {[%clk 0:00:08]}  Rc8 {[%clk 0:00:52]} 39. Rd3 {[%clk 0:00:06]}  Bd8 {[%clk 0:00:52]} 40. Nxd6+ {[%clk 0:00:06]}  Kf8 {[%clk 0:00:44]} 41. Nxc8 {[%clk 0:00:06]}  Bxg5 {[%clk 0:00:44]} 42. Nxb6 {[%clk 0:00:06]} 1-0


[Site "https://www.chess.com"]

[Event "Titled Tuesday Blitz May 10 Late 2022"]
[White "Shapiro, Daniel"]
[Black "Vovk, Orest"]
[WhiteFideId "2001780"]
[BlackFideId "14113490"]
[WhiteElo "2328"]
[BlackElo "2203"]
[Result "0-1"]
[Round "07"]
[TimeControl "180+1"]
[Date "2022.05.11"]
[WhiteClock "0:00:01"]
[BlackClock "0:00:32"]

1. d4 {[%clk 0:03:00]}  Nf6 {[%clk 0:02:55]} 2. c4 {[%clk 0:03:00]}  e6 {[%clk 0:02:55]} 3. g3 {[%clk 0:02:59]}  Bb4+ {[%clk 0:02:55]} 4. Nd2 {[%clk 0:02:53]}  O-O {[%clk 0:02:54]} 5. Bg2 {[%clk 0:02:53]}  Nc6 {[%clk 0:02:53]} 6. Nf3 {[%clk 0:02:52]}  Ne4 {[%clk 0:02:52]} 7. e3 {[%clk 0:02:46]}  b6 {[%clk 0:02:52]} 8. O-O {[%clk 0:02:42]}  Nxd2 {[%clk 0:02:52]} 9. Nxd2 {[%clk 0:02:41]}  Be7 {[%clk 0:02:47]} 10. d5 {[%clk 0:02:38]}  Na5 {[%clk 0:02:45]} 11. d6 {[%clk 0:02:37]}  Bxd6 {[%clk 0:02:44]} 12. Bxa8 {[%clk 0:02:36]}  c6 {[%clk 0:02:44]} 13. Qa4 {[%clk 0:02:13]}  Be5 {[%clk 0:02:14]} 14. Rb1 {[%clk 0:02:06]}  Ba6 {[%clk 0:02:03]} 15. b4 {[%clk 0:02:01]}  Bxc4 {[%clk 0:02:03]} 16. Nxc4 {[%clk 0:01:42]}  Nxc4 {[%clk 0:02:03]} 17. Bxc6 {[%clk 0:01:36]}  dxc6 {[%clk 0:02:02]} 18. Qxc6 {[%clk 0:01:36]}  Qd3 {[%clk 0:01:55]} 19. Rb3 {[%clk 0:01:26]}  Qe2 {[%clk 0:01:53]} 20. Qb5 {[%clk 0:01:09]}  h5 {[%clk 0:01:43]} 21. f4 {[%clk 0:00:52]}  Bf6 {[%clk 0:01:41]} 22. Qc6 {[%clk 0:00:42]}  Rd8 {[%clk 0:01:28]} 23. Qg2 {[%clk 0:00:41]}  Qg4 {[%clk 0:01:27]} 24. h3 {[%clk 0:00:39]}  Qg6 {[%clk 0:01:26]} 25. e4 {[%clk 0:00:37]}  Bd4+ {[%clk 0:01:25]} 26. Kh2 {[%clk 0:00:38]}  e5 {[%clk 0:01:24]} 27. f5 {[%clk 0:00:36]}  Qc6 {[%clk 0:01:19]} 28. Bg5 {[%clk 0:00:33]}  f6 {[%clk 0:01:19]} 29. Bc1 {[%clk 0:00:32]}  Qa4 {[%clk 0:01:11]} 30. Qc2 {[%clk 0:00:25]}  Rc8 {[%clk 0:01:08]} 31. Rc3 {[%clk 0:00:20]}  Qc6 {[%clk 0:01:05]} 32. Rb3 {[%clk 0:00:18]}  b5 {[%clk 0:01:03]} 33. g4 {[%clk 0:00:18]}  h4 {[%clk 0:01:03]} 34. g5 {[%clk 0:00:17]}  Kf7 {[%clk 0:01:02]} 35. g6+ {[%clk 0:00:17]}  Ke7 {[%clk 0:01:01]} 36. Qe2 {[%clk 0:00:17]}  Nd6 {[%clk 0:00:58]} 37. Re1 {[%clk 0:00:14]}  Qc2 {[%clk 0:00:55]} 38. Qxc2 {[%clk 0:00:09]}  Rxc2+ {[%clk 0:00:56]} 39. Kh1 {[%clk 0:00:09]}  Nxe4 {[%clk 0:00:53]} 40. Be3 {[%clk 0:00:06]}  Ng3+ {[%clk 0:00:51]} 41. Kg1 {[%clk 0:00:06]}  Bxe3+ {[%clk 0:00:46]} 42. Rexe3 {[%clk 0:00:06]}  Nxf5 {[%clk 0:00:47]} 43. Re4 {[%clk 0:00:05]}  Rxa2 {[%clk 0:00:45]} 44. Rc3 {[%clk 0:00:05]}  Kd7 {[%clk 0:00:43]} 45. Re1 {[%clk 0:00:04]}  Nd4 {[%clk 0:00:40]} 46. Kf1 {[%clk 0:00:04]}  Rb2 {[%clk 0:00:37]} 47. Rec1 {[%clk 0:00:04]}  Ne6 {[%clk 0:00:35]} 48. Rd3+ {[%clk 0:00:03]}  Ke7 {[%clk 0:00:35]} 49. Rdc3 {[%clk 0:00:02]}  f5 {[%clk 0:00:32]} 50. Rc6 {[%clk 0:00:01]}  Rxb4 {[%clk 0:00:31]} 51. Ra6 {[%clk 0:00:01]}  Rf4+ {[%clk 0:00:32]} 0-1


[Site "https://www.chess.com"]

[Event "Titled Tuesday Blitz May 10 Late 2022"]
[White "Srinath, Rao S.V."]
[Black "Herrera Reyes, Jose Antonio"]
[WhiteFideId "5028876"]
[BlackFideId "2274914"]
[WhiteElo "2181"]
[BlackElo "2361"]
[Result "1-0"]
[Round "07"]
[TimeControl "180+1"]
[Date "2022.05.10"]
[WhiteClock "0:01:11"]
[BlackClock "0:00:07"]

1. e4 {[%clk 0:03:00]}  c5 {[%clk 0:02:59]} 2. c3 {[%clk 0:03:00]}  d6 {[%clk 0:02:49]} 3. d4 {[%clk 0:03:00]}  cxd4 {[%clk 0:02:50]} 4. cxd4 {[%clk 0:02:59]}  e6 {[%clk 0:02:50]} 5. Nc3 {[%clk 0:02:59]}  a6 {[%clk 0:02:49]} 6. Bd3 {[%clk 0:03:00]}  b5 {[%clk 0:02:49]} 7. a3 {[%clk 0:02:59]}  Bb7 {[%clk 0:02:49]} 8. Nge2 {[%clk 0:03:00]}  Nd7 {[%clk 0:02:50]} 9. O-O {[%clk 0:03:01]}  g6 {[%clk 0:02:48]} 10. Be3 {[%clk 0:03:00]}  Bg7 {[%clk 0:02:47]} 11. f4 {[%clk 0:03:00]}  Ne7 {[%clk 0:02:45]} 12. Qd2 {[%clk 0:02:55]}  O-O {[%clk 0:02:44]} 13. f5 {[%clk 0:02:56]}  Kh8 {[%clk 0:02:38]} 14. Bg5 {[%clk 0:02:51]}  gxf5 {[%clk 0:02:33]} 15. exf5 {[%clk 0:02:50]}  Rg8 {[%clk 0:02:31]} 16. f6 {[%clk 0:02:37]}  Nxf6 {[%clk 0:02:28]} 17. Rxf6 {[%clk 0:02:36]}  Bxg2 {[%clk 0:02:06]} 18. Rxf7 {[%clk 0:02:20]}  Bh3 {[%clk 0:01:43]} 19. Qf4 {[%clk 0:02:07]}  Bf5 {[%clk 0:00:40]} 20. Bxf5 {[%clk 0:02:05]}  exf5 {[%clk 0:00:38]} 21. Bxe7 {[%clk 0:01:51]}  Qe8 {[%clk 0:00:29]} 22. Qxf5 {[%clk 0:01:51]}  Qc6 {[%clk 0:00:18]} 23. Nd5 {[%clk 0:01:33]}  Qc4 {[%clk 0:00:13]} 24. Kh1 {[%clk 0:01:21]}  Qxe2 {[%clk 0:00:13]} 25. Rg1 {[%clk 0:01:18]}  Qxb2 {[%clk 0:00:07]} 26. Rfxg7 {[%clk 0:01:13]}  Rxg7 {[%clk 0:00:07]} 27. Bf6 {[%clk 0:01:11]} 1-0


[Site "https://www.chess.com"]

[Event "Titled Tuesday Blitz May 10 Late 2022"]
[White "Stanisz, Patryk"]
[Black "Kate1606"]
[WhiteFideId "1123106"]
[WhiteElo "1833"]
[BlackElo "2077"]
[Result "1-0"]
[Round "07"]
[TimeControl "180+1"]
[Date "2022.05.11"]
[WhiteClock "0:00:49"]
[BlackClock "0:00:01"]

1. Nf3 {[%clk 0:02:53]}  Nf6 {[%clk 0:02:50]} 2. c4 {[%clk 0:02:53]}  g6 {[%clk 0:02:49]} 3. Nc3 {[%clk 0:02:53]}  c5 {[%clk 0:02:48]} 4. g3 {[%clk 0:02:54]}  Nc6 {[%clk 0:02:47]} 5. Bg2 {[%clk 0:02:55]}  Bg7 {[%clk 0:02:42]} 6. O-O {[%clk 0:02:55]}  d6 {[%clk 0:02:42]} 7. d4 {[%clk 0:02:54]}  cxd4 {[%clk 0:02:42]} 8. Nxd4 {[%clk 0:02:55]}  Bd7 {[%clk 0:02:37]} 9. Rb1 {[%clk 0:02:18]}  O-O {[%clk 0:02:31]} 10. Nc2 {[%clk 0:02:10]}  Rb8 {[%clk 0:02:25]} 11. b3 {[%clk 0:02:09]}  Qa5 {[%clk 0:02:16]} 12. Bb2 {[%clk 0:02:08]}  a6 {[%clk 0:01:48]} 13. Qd2 {[%clk 0:02:04]}  Ng4 {[%clk 0:01:41]} 14. Rbd1 {[%clk 0:01:58]}  Rfc8 {[%clk 0:01:35]} 15. a3 {[%clk 0:01:52]}  Qh5 {[%clk 0:01:25]} 16. h4 {[%clk 0:01:50]}  Bh6 {[%clk 0:01:17]} 17. Qd5 {[%clk 0:01:45]}  Qf5 {[%clk 0:01:00]} 18. e4 {[%clk 0:01:38]}  Qxd5 {[%clk 0:00:52]} 19. exd5 {[%clk 0:01:35]}  Nce5 {[%clk 0:00:46]} 20. f4 {[%clk 0:01:29]}  Nxc4 {[%clk 0:00:29]} 21. bxc4 {[%clk 0:01:27]}  Rxc4 {[%clk 0:00:29]} 22. Bh3 {[%clk 0:01:20]}  Bg7 {[%clk 0:00:07]} 23. Rc1 {[%clk 0:01:14]}  Bxc3 {[%clk 0:00:05]} 24. Bxg4 {[%clk 0:01:13]}  Bxg4 {[%clk 0:00:04]} 25. Ne3 {[%clk 0:01:13]}  Rc5 {[%clk 0:00:02]} 26. Bxc3 {[%clk 0:01:10]}  Rbc8 {[%clk 0:00:02]} 27. Nxg4 {[%clk 0:01:08]}  Rxc3 {[%clk 0:00:02]} 28. Rxc3 {[%clk 0:01:08]}  Rxc3 {[%clk 0:00:02]} 29. Kg2 {[%clk 0:01:02]}  Rxa3 {[%clk 0:00:02]} 30. Rb1 {[%clk 0:01:03]}  b5 {[%clk 0:00:02]} 31. Nf2 {[%clk 0:00:51]}  Rd3 {[%clk 0:00:01]} 32. Ra1 {[%clk 0:00:49]} 1-0


[Site "https://www.chess.com"]

[Event "Titled Tuesday Blitz May 10 Late 2022"]
[White "Stremavicius, Titas"]
[Black "Vasquez Schroeder, Rodrigo"]
[WhiteFideId "12804444"]
[BlackFideId "3400042"]
[WhiteElo "2404"]
[BlackElo "2567"]
[Result "1/2-1/2"]
[Round "07"]
[TimeControl "180+1"]
[Date "2022.05.10"]
[WhiteClock "0:00:11"]
[BlackClock "0:00:19"]

1. f4 {[%clk 0:02:59]}  d5 {[%clk 0:02:58]} 2. Nf3 {[%clk 0:02:59]}  Nh6 {[%clk 0:02:57]} 3. d3 {[%clk 0:02:56]}  d4 {[%clk 0:02:46]} 4. c3 {[%clk 0:02:55]}  c5 {[%clk 0:02:45]} 5. e4 {[%clk 0:02:54]}  dxe3 {[%clk 0:02:43]} 6. Bxe3 {[%clk 0:02:53]}  Qc7 {[%clk 0:02:35]} 7. Na3 {[%clk 0:02:28]}  Nf5 {[%clk 0:02:27]} 8. Bd2 {[%clk 0:02:26]}  a6 {[%clk 0:02:20]} 9. g3 {[%clk 0:02:25]}  b5 {[%clk 0:02:15]} 10. Bg2 {[%clk 0:02:25]}  Bb7 {[%clk 0:02:16]} 11. O-O {[%clk 0:02:24]}  e6 {[%clk 0:02:15]} 12. Nc2 {[%clk 0:02:22]}  Be7 {[%clk 0:02:09]} 13. a4 {[%clk 0:02:20]}  O-O {[%clk 0:02:07]} 14. Qe2 {[%clk 0:02:16]}  Nd7 {[%clk 0:02:05]} 15. Ne3 {[%clk 0:02:15]}  Nxe3 {[%clk 0:01:59]} 16. Bxe3 {[%clk 0:02:16]}  Nf6 {[%clk 0:01:59]} 17. Kh1 {[%clk 0:02:14]}  Rfd8 {[%clk 0:01:51]} 18. Bg1 {[%clk 0:02:10]}  Bd6 {[%clk 0:01:43]} 19. axb5 {[%clk 0:02:06]}  axb5 {[%clk 0:01:43]} 20. Rxa8 {[%clk 0:02:07]}  Rxa8 {[%clk 0:01:41]} 21. Nd2 {[%clk 0:01:46]}  Ra2 {[%clk 0:01:34]} 22. Ne4 {[%clk 0:01:46]}  Be7 {[%clk 0:01:22]} 23. Qc2 {[%clk 0:01:40]}  Ra7 {[%clk 0:01:09]} 24. b3 {[%clk 0:01:26]}  Ra6 {[%clk 0:01:02]} 25. c4 {[%clk 0:01:25]}  bxc4 {[%clk 0:00:56]} 26. bxc4 {[%clk 0:01:25]}  Nd7 {[%clk 0:00:47]} 27. Rb1 {[%clk 0:01:09]}  Rb6 {[%clk 0:00:40]} 28. Bf2 {[%clk 0:00:50]}  h6 {[%clk 0:00:40]} 29. Rb3 {[%clk 0:00:49]}  Bc6 {[%clk 0:00:38]} 30. Qb1 {[%clk 0:00:47]}  Ra6 {[%clk 0:00:35]} 31. Nc3 {[%clk 0:00:43]}  Bxg2+ {[%clk 0:00:28]} 32. Kxg2 {[%clk 0:00:44]}  Qc6+ {[%clk 0:00:28]} 33. Kg1 {[%clk 0:00:45]}  Ra7 {[%clk 0:00:25]} 34. Nb5 {[%clk 0:00:42]}  Ra8 {[%clk 0:00:25]} 35. Rb2 {[%clk 0:00:40]}  Bf6 {[%clk 0:00:22]} 36. Ra2 {[%clk 0:00:39]}  Ra6 {[%clk 0:00:22]} 37. Qc2 {[%clk 0:00:31]}  Qb7 {[%clk 0:00:20]} 38. Qe2 {[%clk 0:00:21]}  Qa8 {[%clk 0:00:18]} 39. Rxa6 {[%clk 0:00:20]}  Qxa6 {[%clk 0:00:19]} 40. Kg2 {[%clk 0:00:20]}  Qa1 {[%clk 0:00:18]} 41. Qe4 {[%clk 0:00:20]}  Qa6 {[%clk 0:00:18]} 42. Nc7 {[%clk 0:00:18]}  Qb6 {[%clk 0:00:17]} 43. Qa8+ {[%clk 0:00:16]}  Nf8 {[%clk 0:00:17]} 44. Nb5 {[%clk 0:00:15]}  Be7 {[%clk 0:00:17]} 45. Qa7 {[%clk 0:00:15]}  Qxa7 {[%clk 0:00:16]} 46. Nxa7 {[%clk 0:00:14]}  Nd7 {[%clk 0:00:17]} 47. Nc6 {[%clk 0:00:15]}  Bd6 {[%clk 0:00:17]} 48. Kf3 {[%clk 0:00:15]}  f5 {[%clk 0:00:17]} 49. h3 {[%clk 0:00:15]}  Kf7 {[%clk 0:00:18]} 50. g4 {[%clk 0:00:16]}  g6 {[%clk 0:00:19]} 51. Na5 {[%clk 0:00:15]}  Ke7 {[%clk 0:00:19]} 52. Nb7 {[%clk 0:00:14]}  e5 {[%clk 0:00:19]} 53. Be3 {[%clk 0:00:13]}  exf4 {[%clk 0:00:18]} 54. Bxf4 {[%clk 0:00:13]}  Bxf4 {[%clk 0:00:18]} 55. Kxf4 {[%clk 0:00:13]}  fxg4 {[%clk 0:00:19]} 56. hxg4 {[%clk 0:00:11]}  Ke6 {[%clk 0:00:19]} 57. Nd8+ {[%clk 0:00:11]}  Kf6 {[%clk 0:00:20]} 58. Nc6 {[%clk 0:00:10]}  Ke6 {[%clk 0:00:19]} 59. Nd8+ {[%clk 0:00:10]}  Kf6 {[%clk 0:00:19]} 60. Nc6 {[%clk 0:00:11]}  Ke6 {[%clk 0:00:19]} 61. Nd8+ {[%clk 0:00:11]} 1/2-1/2


[Site "https://www.chess.com"]